[Event "37th Zalakaros Festival 2018"]
[Site "Zalakaros"]
[Date "2018.05.27"]
[Round "3"]
[White "Marosi, Levente"]
[Black "Takac, Zvonko"]
[Result "1-0"]
[ECO "C07"]
[WhiteElo "2277"]
[BlackElo "1977"]
[Annotator "NA"]
[PlyCount "83"]
[EventDate "2018.??.??"]
[EventType "swiss"]
[EventCountry "HUN"]
[SourceTitle "playchess.com"]
[Source "ChessBase"]
[SourceQuality "1"]
[TimeControl "40/5400+30:1800+30"]

1. e4 {[%emt 0:00:03]} e6 {[%emt 0:00:43]} 2. d4 {[%emt 0:00:14]} d5 {[%emt 0:00:07]} 3. Nd2 {[%emt 0:00:16]} c5 {[%emt 0:00:34]} 4. Ngf3 {[%emt 0:00:19]} cxd4 {[%emt 0:02:23]} 5. Nxd4 {[%emt 0:00:12]} Nc6 {[%emt 0:03:19]} 6. Bb5 {[%emt 0:00:27]} Bd7 {[%emt 0:01:06]} 7. Nxc6 {[%emt 0:00:16]} bxc6 {[%emt 0:00:56]} 8. Bd3 {[%emt 0:00:14]} Bd6 {[%emt 0:01:37]} 9. Qe2 {[%emt 0:00:19]} Qc7 {[%emt 0:02:27]} 10. Nf3 {[%emt 0:00:32]} dxe4 {[%emt 0:01:10]} 11. Bxe4 {[%emt 0:01:00]} Nf6 {[%emt 0:00:11]} 12. O-O {[%emt 0:01:16]} O-O {[%emt 0:03:26]} 13. Rd1 {[%emt 0:01:27]} Rad8 {[%emt 0:03:39]} 14. Bg5 {[%emt 0:10:09]} Be7 {[%emt 0:04:33]} 15. c3 {[%emt 0:10:49]} Bc8 {[%emt 0:04:06]} 16. g3 {[%emt 0:09:51]} Nxe4 {[%emt 0:01:40]} 17. Qxe4 {[%emt 0:00:51]} f6 {[%emt 0:02:14]} 18. Be3 {[%emt 0:00:53]} e5 {[%emt 0:03:32]} 19. Qc4+ {[%emt 0:15:07]} Kh8 {[%emt 0:00:24]} 20. b4 {[%emt 0:07:29]} c5 {[%emt 0:12:29]} 21. Nd2 {[%emt 0:09:49]} Bb7 {[%emt 0:04:24]} 22. b5 {[%emt 0:01:47]} Bd5 {[%emt 0:11:14]} 23. Qe2 {[%emt 0:01:13]} f5 {[%emt 0:06:03]} 24. Re1 {[%emt 0:09:05]} Bf6 {[%emt 0:02:07]} 25. c4 {[%emt 0:01:45]} Be6 {[%emt 0:08:11]} 26. Nb3 {[%emt 0:00:57]} Be7 {[%emt 0:00:17]} 27. Bd2 {[%emt 0:03:09]} e4 {[%emt 0:02:20]} 28. Ba5 {[%emt 0:01:06]} Qe5 {[%emt 0:07:07]} 29. f4 {[%emt 0:01:25]} Qf6 {[%emt 0:02:36]} 30. Bxd8 {[%emt 0:00:05]} Rxd8 {[%emt 0:00:05]} 31. Rad1 {[%emt 0:00:31]} Qc3 {[%emt 0:02:10]} 32. Rxd8+ {[%emt 0:02:52]} Bxd8 {[%emt 0:00:01]} 33. Rc1 {[%emt 0:00:07]} Qb4 {[%emt 0:02:36]} 34. Qd2 {[%emt 0:01:35]} Qxd2 {[%emt 0:00:42]} 35. Nxd2 {[%emt 0:00:02]} Kg8 {[%emt 0:01:05]} 36. Nb3 {[%emt 0:00:26]} Be7 {[%emt 0:00:06]} 37. a4 {[%emt 0:01:13]} Kf7 {[%emt 0:00:08]} 38. a5 {[%emt 0:01:30]} Ke8 {[%emt 0:00:23]} 39. b6 {[%emt 0:00:53]} axb6 {[%emt 0:00:13]} 40. axb6 {[%emt 0:00:00]} Kd7 {[%emt 0:02:19]} 41. Na5 {[%emt 0:06:54]} Bf6 {[%emt 0:07:36]} 42. b7 {[%emt 0:00:24]} 1-0

[Event "37th Zalakaros Festival 2018"]
[Site "Zalakaros"]
[Date "2018.05.27"]
[Round "3"]
[White "Peczely, Sebastian Zsombor"]
[Black "Tompa, Janos"]
[Result "1/2-1/2"]
[ECO "C71"]
[WhiteElo "2244"]
[BlackElo "2372"]
[Annotator "NA"]
[PlyCount "30"]
[EventDate "2018.??.??"]
[EventType "swiss"]
[EventCountry "HUN"]
[SourceTitle "playchess.com"]
[Source "ChessBase"]
[SourceQuality "1"]
[TimeControl "40/5400+30:1800+30"]

1. e4 {[%emt 0:00:03]} e5 {[%emt 0:01:30]} 2. Nf3 {[%emt 0:00:06]} Nc6 {[%emt 0:00:05]} 3. Bb5 {[%emt 0:00:04]} a6 {[%emt 0:00:06]} 4. Ba4 {[%emt 0:00:04]} d6 {[%emt 0:00:06]} 5. c4 {[%emt 0:01:43]} Bd7 {[%emt 0:00:58]} 6. Bxc6 {[%emt 0:00:22]} Bxc6 {[%emt 0:02:33]} 7. d3 {[%emt 0:00:11]} Nf6 {[%emt 0:07:52]} 8. Nc3 {[%emt 0:00:18]} g6 {[%emt 0:00:51]} 9. h3 {[%emt 0:02:12]} Bg7 {[%emt 0:00:14]} 10. Be3 {[%emt 0:00:08]} O-O {[%emt 0:01:09]} 11. Qd2 {[%emt 0:00:11]} b5 {[%emt 0:10:52]} 12. b3 {[%emt 0:01:19]} Rb8 {[%emt 0:09:01]} 13. O-O {[%emt 0:01:20]} Re8 {[%emt 0:05:31]} 14. a4 {[%emt 0:03:14]} bxc4 {[%emt 0:04:48]} 15. bxc4 {[%emt 0:00:08]} Qd7 {[%emt 0:00:22]} 1/2-1/2

[Event "37th Zalakaros Festival 2018"]
[Site "Zalakaros"]
[Date "2018.05.27"]
[Round "3"]
[White "Suta, Andraz"]
[Black "Zentai, Peter"]
[Result "1/2-1/2"]
[ECO "C02"]
[WhiteElo "2212"]
[BlackElo "2327"]
[Annotator "NA"]
[PlyCount "108"]
[EventDate "2018.??.??"]
[EventType "swiss"]
[EventCountry "HUN"]
[SourceTitle "playchess.com"]
[Source "ChessBase"]
[SourceQuality "1"]
[TimeControl "40/5400+30:1800+30"]

1. e4 {[%emt 0:00:03]} e6 {[%emt 0:00:36]} 2. d4 {[%emt 0:00:03]} d5 {[%emt 0:00:05]} 3. e5 {[%emt 0:00:04]} c5 {[%emt 0:00:37]} 4. c3 {[%emt 0:00:05]} Nc6 {[%emt 0:00:08]} 5. Nf3 {[%emt 0:00:05]} Bd7 {[%emt 0:00:27]} 6. dxc5 {[%emt 0:00:11]} Bxc5 {[%emt 0:06:51]} 7. Bd3 {[%emt 0:00:04]} Qc7 {[%emt 0:07:44]} 8. Qe2 {[%emt 0:00:05]} Nge7 {[%emt 0:03:16]} 9. O-O {[%emt 0:00:11]} Ng6 {[%emt 0:03:58]} 10. Re1 {[%emt 0:00:26]} O-O {[%emt 0:09:54]} 11. h4 {[%emt 0:10:30]} f6 {[%emt 0:08:41]} 12. b4 {[%emt 0:35:02]} Bb6 {[%emt 0:01:24]} 13. a4 {[%emt 0:00:59]} a5 {[%emt 0:12:39]} 14. bxa5 {[%emt 0:02:07]} Rxa5 {[%emt 0:10:40]} 15. Bxg6 {[%emt 0:03:24]} hxg6 {[%emt 0:00:14]} 16. Ba3 {[%emt 0:00:07]} Bc5 {[%emt 0:07:11]} 17. exf6 {[%emt 0:13:33]} gxf6 {[%emt 0:02:34]} 18. Bxc5 {[%emt 0:07:24]} Rxc5 {[%emt 0:00:05]} 19. Na3 {[%emt 0:00:05]} e5 {[%emt 0:17:37]} 20. Nb5 {[%emt 0:00:59]} Qd8 {[%emt 0:01:28]} 21. Nd2 {[%emt 0:05:15]} Qe7 {[%emt 0:01:54]} 22. c4 {[%emt 0:05:28]} dxc4 {[%emt 0:02:12]} 23. Nxc4 {[%emt 0:00:57]} Be6 {[%emt 0:00:09]} 24. Ne3 {[%emt 0:00:39]} Nb4 {[%emt 0:01:28]} 25. Rab1 {[%emt 0:01:50]} Nd5 {[%emt 0:00:20]} 26. Nxd5 {[%emt 0:00:34]} Rxd5 {[%emt 0:00:17]} 27. Rbc1 {[%emt 0:00:30]} Rfd8 {[%emt 0:00:25]} 28. Rc2 {[%emt 0:10:49]} Bf5 {[%emt 0:00:38]} 29. Rc7 {[%emt 0:00:54]} R5d7 {[%emt 0:00:46]} 30. Rec1 {[%emt 0:00:51]} Rxc7 31. Rxc7 {[%emt 0:00:18]} Rd7 {[%emt 0:00:46]} 32. Qc4+ {[%emt 0:01:11]} Be6 {[%emt 0:00:19]} 33. Qc2 {[%emt 0:00:29]} Kg7 {[%emt 0:00:32]} 34. Rxd7 {[%emt 0:00:53]} Qxd7 {[%emt 0:00:09]} 35. Qc5 {[%emt 0:00:19]} Bf7 {[%emt 0:01:19]} 36. Nd6 {[%emt 0:00:22]} Bb3 {[%emt 0:00:31]} 37. a5 {[%emt 0:00:28]} Ba4 {[%emt 0:00:21]} 38. Nc4 {[%emt 0:00:54]} Bc6 {[%emt 0:00:11]} 39. Ne3 {[%emt 0:00:15]} Qe6 {[%emt 0:00:34]} 40. Qb6 {[%emt 0:00:00]} Qd7 {[%emt 0:00:55]} 41. a6 {[%emt 0:04:29]} bxa6 {[%emt 0:00:54]} 42. Qxa6 {[%emt 0:01:12]} Bb7 {[%emt 0:04:49]} 43. Qb6 {[%emt 0:01:39]} Bc6 {[%emt 0:03:25]} 44. Qc5 {[%emt 0:01:46]} Qe6 {[%emt 0:04:18]} 45. Qc4 {[%emt 0:04:48]} Qxc4 {[%emt 0:02:27]} 46. Nxc4 {[%emt 0:00:07]} Kh6 {[%emt 0:00:24]} 47. g4 {[%emt 0:06:41]} Bd7 {[%emt 0:04:36]} 48. f3 {[%emt 0:05:01]} e4 {[%emt 0:04:12]} 49. Kf2 {[%emt 0:02:17]} exf3 {[%emt 0:00:23]} 50. Kxf3 {[%emt 0:00:25]} g5 {[%emt 0:00:23]} 51. hxg5+ {[%emt 0:02:21]} Kxg5 {[%emt 0:00:11]} 52. Ne3 {[%emt 0:00:06]} f5 {[%emt 0:00:07]} 53. Nxf5 {[%emt 0:00:22]} Bxf5 {[%emt 0:00:05]} 54. gxf5 {[%emt 0:00:05]} Kxf5 1/2-1/2

[Event "37th Zalakaros Festival 2018"]
[Site "Zalakaros"]
[Date "2018.05.27"]
[Round "3"]
[White "Kincs, Imre"]
[Black "Ostovic, Matija"]
[Result "0-1"]
[ECO "B90"]
[WhiteElo "2210"]
[BlackElo "2352"]
[Annotator "NA"]
[PlyCount "70"]
[EventDate "2018.??.??"]
[EventType "swiss"]
[EventCountry "HUN"]
[SourceTitle "playchess.com"]
[Source "ChessBase"]
[SourceQuality "1"]
[TimeControl "40/5400+30:1800+30"]

1. e4 {[%emt 0:11:52]} c5 {[%emt 0:00:50]} 2. Nf3 {[%emt 0:00:20]} d6 {[%emt 0:00:11]} 3. d4 {[%emt 0:00:22]} cxd4 {[%emt 0:00:14]} 4. Nxd4 {[%emt 0:00:06]} Nf6 {[%emt 0:00:06]} 5. Nc3 {[%emt 0:00:03]} a6 {[%emt 0:00:04]} 6. Be3 {[%emt 0:01:37]} e5 {[%emt 0:00:20]} 7. Nb3 {[%emt 0:01:07]} Be6 {[%emt 0:00:19]} 8. f3 {[%emt 0:01:18]} Be7 {[%emt 0:02:09]} 9. Qd2 {[%emt 0:01:46]} Nbd7 {[%emt 0:02:19]} 10. O-O-O {[%emt 0:01:18]} h5 {[%emt 0:02:59]} 11. Be2 {[%emt 0:01:10]} b5 {[%emt 0:00:33]} 12. Kb1 {[%emt 0:11:22]} Rc8 {[%emt 0:08:12]} 13. a3 {[%emt 0:18:19]} O-O {[%emt 0:07:47]} 14. h3 {[%emt 0:02:32]} Nb6 {[%emt 0:19:45]} 15. Bg5 {[%emt 0:01:35]} Nfd5 {[%emt 0:03:37]} 16. Nxd5 {[%emt 0:14:40]} Bxg5 {[%emt 0:00:31]} 17. f4 {[%emt 0:00:29]} Bxd5 {[%emt 0:03:21]} 18. exd5 {[%emt 0:00:30]} Bxf4 {[%emt 0:00:19]} 19. Qd3 {[%emt 0:03:18]} Nc4 {[%emt 0:02:57]} 20. g3 {[%emt 0:00:32]} Bh6 {[%emt 0:01:04]} 21. Bxh5 {[%emt 0:00:41]} Qg5 {[%emt 0:04:00]} 22. Be2 {[%emt 0:02:53]} Ne3 {[%emt 0:06:07]} 23. Rdg1 {[%emt 0:00:26]} Rxc2 {[%emt 0:03:05]} 24. h4 {[%emt 0:00:06]} Qe7 {[%emt 0:02:14]} 25. g4 {[%emt 0:00:18]} e4 {[%emt 0:03:01]} 26. Qd4 {[%emt 0:05:02]} Bf4 {[%emt 0:01:06]} 27. Bd1 {[%emt 0:01:13]} Rc4 {[%emt 0:06:47]} 28. Qd2 {[%emt 0:01:51]} Qe5 {[%emt 0:00:29]} 29. Na5 {[%emt 0:00:30]} Rd4 {[%emt 0:01:13]} 30. Qf2 {[%emt 0:01:22]} Nxd1 {[%emt 0:08:25]} 31. Rxd1 {[%emt 0:00:08]} e3 {[%emt 0:00:24]} 32. Qf3 {[%emt 0:01:47]} Rxd1+ {[%emt 0:00:31]} 33. Rxd1 {[%emt 0:00:06]} e2 {[%emt 0:00:46]} 34. Re1 {[%emt 0:00:21]} Re8 {[%emt 0:00:44]} 35. Nc6 {[%emt 0:00:33]} Qe4+ {[%emt 0:00:32]} 0-1

[Event "37th Zalakaros Festival 2018"]
[Site "Zalakaros"]
[Date "2018.05.27"]
[Round "3"]
[White "Karacsonyi, Gellert"]
[Black "Li, Bo"]
[Result "0-1"]
[ECO "B32"]
[WhiteElo "2208"]
[BlackElo "2319"]
[Annotator "NA"]
[PlyCount "46"]
[EventDate "2018.??.??"]
[EventType "swiss"]
[EventCountry "HUN"]
[SourceTitle "playchess.com"]
[Source "ChessBase"]
[SourceQuality "1"]
[TimeControl "40/5400+30:1800+30"]

1. e4 {[%emt 0:00:02]} c5 {[%emt 0:01:58]} 2. Nf3 {[%emt 0:00:07]} Nc6 {[%emt 0:01:35]} 3. d4 {[%emt 0:00:09]} cxd4 {[%emt 0:00:48]} 4. Nxd4 {[%emt 0:00:08]} Qb6 {[%emt 0:02:42]} 5. Nb3 {[%emt 0:00:07]} Nf6 {[%emt 0:04:25]} 6. Bd3 {[%emt 0:00:15]} d6 {[%emt 0:03:54]} 7. O-O {[%emt 0:01:46]} g6 {[%emt 0:02:01]} 8. Nc3 {[%emt 0:03:12]} Bg7 {[%emt 0:01:25]} 9. Be3 {[%emt 0:03:44]} Qd8 {[%emt 0:04:57]} 10. h3 {[%emt 0:03:04]} O-O {[%emt 0:05:12]} 11. f4 {[%emt 0:01:24]} d5 {[%emt 0:06:47]} 12. e5 {[%emt 0:19:28]} d4 {[%emt 0:03:05]} 13. exf6 {[%emt 0:00:22]} Bxf6 {[%emt 0:00:58]} 14. Ne4 {[%emt 0:00:48]} dxe3 {[%emt 0:00:27]} 15. Nxf6+ {[%emt 0:00:41]} exf6 {[%emt 0:00:03]} 16. Qf3 {[%emt 0:01:11]} Qb6 {[%emt 0:04:35]} 17. Rfe1 {[%emt 0:05:03]} Re8 {[%emt 0:01:15]} 18. Re2 {[%emt 0:21:18]} Nb4 {[%emt 0:18:28]} 19. Rae1 {[%emt 0:09:31]} Bd7 {[%emt 0:08:35]} 20. Be4 {[%emt 0:03:41]} Bb5 {[%emt 0:05:25]} 21. Rxe3 {[%emt 0:05:17]} f5 {[%emt 0:01:12]} 22. Bd3 {[%emt 0:01:23]} Bxd3 {[%emt 0:01:07]} 23. cxd3 {[%emt 0:00:06]} Nc2 {[%emt 0:01:16]} 0-1

[Event "37th Zalakaros Festival 2018"]
[Site "Zalakaros"]
[Date "2018.05.28"]
[Round "4"]
[White "Tompa, Janos"]
[Black "Ianov, Viktor"]
[Result "1/2-1/2"]
[ECO "A41"]
[WhiteElo "2372"]
[BlackElo "2285"]
[Annotator "NA"]
[PlyCount "88"]
[EventDate "2018.??.??"]
[EventType "swiss"]
[EventCountry "HUN"]
[SourceTitle "playchess.com"]
[Source "ChessBase"]
[SourceQuality "1"]
[TimeControl "40/5400+30:1800+30"]

1. Nf3 {[%emt 0:00:06]} d6 {[%emt 0:01:11]} 2. d4 {[%emt 0:00:28]} Bg4 {[%emt 0:00:08]} 3. b3 {[%emt 0:04:01]} g6 {[%emt 0:01:43]} 4. Bb2 {[%emt 0:00:05]} Bg7 {[%emt 0:00:07]} 5. e3 {[%emt 0:01:23]} c5 {[%emt 0:01:30]} 6. Be2 {[%emt 0:04:59]} Nc6 {[%emt 0:01:02]} 7. O-O {[%emt 0:01:18]} Nh6 {[%emt 0:00:38]} 8. Nbd2 {[%emt 0:05:48]} O-O {[%emt 0:00:38]} 9. h3 {[%emt 0:00:22]} Bd7 {[%emt 0:00:40]} 10. Rb1 {[%emt 0:09:05]} cxd4 {[%emt 0:02:19]} 11. exd4 {[%emt 0:00:57]} d5 {[%emt 0:00:25]} 12. c3 {[%emt 0:07:12]} Nf5 {[%emt 0:01:24]} 13. Bd3 {[%emt 0:00:10]} Re8 {[%emt 0:01:04]} 14. Re1 {[%emt 0:00:28]} Rc8 {[%emt 0:00:34]} 15. Ne5 {[%emt 0:01:37]} Nd6 {[%emt 0:01:39]} 16. Nxd7 {[%emt 0:01:18]} Qxd7 {[%emt 0:00:10]} 17. Nf3 {[%emt 0:00:16]} e6 {[%emt 0:00:42]} 18. Ne5 {[%emt 0:11:06]} Nxe5 {[%emt 0:01:42]} 19. dxe5 {[%emt 0:00:06]} Nb5 {[%emt 0:01:45]} 20. c4 {[%emt 0:01:47]} Nc7 {[%emt 0:00:26]} 21. Qf3 {[%emt 0:02:34]} Red8 {[%emt 0:03:00]} 22. Rbd1 {[%emt 0:03:42]} Qe7 {[%emt 0:00:27]} 23. cxd5 {[%emt 0:01:29]} Nxd5 {[%emt 0:01:16]} 24. Be4 {[%emt 0:01:53]} Qb4 {[%emt 0:00:41]} 25. Re2 {[%emt 0:00:53]} Qa5 {[%emt 0:04:03]} 26. a3 {[%emt 0:09:22]} Nf4 {[%emt 0:03:40]} 27. Rxd8+ {[%emt 0:10:44]} Qxd8 {[%emt 0:00:45]} 28. Rc2 {[%emt 0:00:22]} Rxc2 {[%emt 0:00:55]} 29. Bxc2 {[%emt 0:00:05]} Qd2 {[%emt 0:00:22]} 30. Qd1 {[%emt 0:01:07]} Qxd1+ {[%emt 0:00:38]} 31. Bxd1 {[%emt 0:00:03]} Nd3 {[%emt 0:00:10]} 32. Bd4 {[%emt 0:00:01]} b6 {[%emt 0:00:08]} 33. Be2 {[%emt 0:00:57]} Bxe5 {[%emt 0:00:29]} 34. Bxd3 {[%emt 0:00:04]} Bxd4 {[%emt 0:00:07]} 35. g4 {[%emt 0:00:51]} h6 {[%emt 0:00:34]} 36. Kg2 {[%emt 0:00:39]} Kg7 {[%emt 0:00:18]} 37. f4 {[%emt 0:01:07]} f5 {[%emt 0:01:18]} 38. Bb5 {[%emt 0:02:13]} Kf6 {[%emt 0:01:21]} 39. Kf3 {[%emt 0:00:09]} Bb2 {[%emt 0:00:13]} 40. a4 {[%emt 0:00:00]} Bc1 {[%emt 0:00:07]} 41. Be8 {[%emt 0:01:00]} g5 {[%emt 0:00:33]} 42. fxg5+ {[%emt 0:00:52]} hxg5 {[%emt 0:00:29]} 43. gxf5 {[%emt 0:00:42]} exf5 {[%emt 0:00:10]} 44. Bd7 {[%emt 0:00:06]} Ke5 {[%emt 0:00:14] Ke4+} 1/2-1/2

[Event "37th Zalakaros Festival 2018"]
[Site "Zalakaros"]
[Date "2018.05.28"]
[Round "4"]
[White "Zentai, Peter"]
[Black "Szilagyi, Norbert"]
[Result "1-0"]
[ECO "E32"]
[WhiteElo "2327"]
[BlackElo "2084"]
[Annotator "NA"]
[PlyCount "63"]
[EventDate "2018.??.??"]
[EventType "swiss"]
[EventCountry "HUN"]
[SourceTitle "playchess.com"]
[Source "ChessBase"]
[SourceQuality "1"]
[TimeControl "40/5400+30:1800+30"]

1. d4 {[%emt 0:00:10]} Nf6 {[%emt 0:00:37]} 2. c4 {[%emt 0:00:28]} e6 {[%emt 0:00:07]} 3. Nc3 {[%emt 0:00:06]} Bb4 {[%emt 0:00:08]} 4. Qc2 {[%emt 0:00:36]} O-O {[%emt 0:00:38]} 5. a3 {[%emt 0:00:20]} Bxc3+ {[%emt 0:00:06]} 6. Qxc3 {[%emt 0:00:05]} b6 {[%emt 0:00:22]} 7. Bg5 {[%emt 0:00:38]} Bb7 {[%emt 0:08:53]} 8. f3 {[%emt 0:01:13]} d6 {[%emt 0:06:02]} 9. e4 {[%emt 0:01:35]} h6 {[%emt 0:02:27]} 10. Bh4 {[%emt 0:01:04]} e5 {[%emt 0:16:55]} 11. Nh3 {[%emt 0:49:48]} Nbd7 {[%emt 0:07:16]} 12. Nf2 {[%emt 0:02:44]} Re8 {[%emt 0:07:05]} 13. Bxf6 {[%emt 0:15:55]} Qxf6 {[%emt 0:08:02]} 14. d5 {[%emt 0:00:31]} Qg6 {[%emt 0:03:27]} 15. g3 {[%emt 0:03:45]} h5 {[%emt 0:09:47]} 16. Bh3 {[%emt 0:03:34]} Bc8 {[%emt 0:05:34]} 17. b4 {[%emt 0:03:05]} Nf6 {[%emt 0:02:12]} 18. Bxc8 {[%emt 0:00:11]} Raxc8 {[%emt 0:00:17]} 19. Qd3 {[%emt 0:07:07]} Red8 {[%emt 0:07:58]} 20. Ke2 {[%emt 0:00:32]} c6 {[%emt 0:01:07]} 21. dxc6 {[%emt 0:01:08]} b5 {[%emt 0:02:14]} 22. cxb5 {[%emt 0:01:15]} h4 {[%emt 0:03:21]} 23. g4 {[%emt 0:00:42]} d5 {[%emt 0:03:07]} 24. exd5 {[%emt 0:00:28]} Qh6 {[%emt 0:03:16]} 25. d6 {[%emt 0:01:28]} a6 {[%emt 0:01:07]} 26. c7 {[%emt 0:01:43]} Rd7 {[%emt 0:00:51]} 27. b6 {[%emt 0:00:31]} Re8 {[%emt 0:00:07]} 28. b7 {[%emt 0:01:03]} e4 {[%emt 0:00:07]} 29. fxe4 {[%emt 0:00:37]} Nxe4 {[%emt 0:01:05]} 30. Nxe4 {[%emt 0:00:34]} Rxd6 {[%emt 0:00:39]} 31. c8=Q {[%emt 0:00:35]} Rde6 {[%emt 0:00:05]} 32. b8=Q {[%emt 0:00:47]} 1-0

[Event "37th Zalakaros Festival 2018"]
[Site "Zalakaros"]
[Date "2018.05.28"]
[Round "4"]
[White "Polajzer, Danilo"]
[Black "Narendran Gouthaman"]
[Result "1-0"]
[ECO "E54"]
[WhiteElo "2273"]
[BlackElo "2068"]
[Annotator "NA"]
[PlyCount "151"]
[EventDate "2018.??.??"]
[EventType "swiss"]
[EventCountry "HUN"]
[SourceTitle "playchess.com"]
[Source "ChessBase"]
[SourceQuality "1"]
[TimeControl "40/5400+30:1800+30"]

1. Nf3 {[%emt 0:00:05]} d5 {[%emt 0:00:48]} 2. d4 {[%emt 0:01:02]} Nf6 {[%emt 0:00:11]} 3. c4 {[%emt 0:00:11]} e6 {[%emt 0:00:15]} 4. Nc3 {[%emt 0:00:06]} Bb4 {[%emt 0:00:16]} 5. e3 {[%emt 0:04:17]} O-O {[%emt 0:00:28]} 6. Bd3 {[%emt 0:01:34]} c5 {[%emt 0:00:11]} 7. O-O {[%emt 0:00:25]} dxc4 {[%emt 0:02:05]} 8. Bxc4 {[%emt 0:00:06]} cxd4 {[%emt 0:00:12]} 9. exd4 {[%emt 0:00:29]} b6 {[%emt 0:01:03]} 10. Qe2 {[%emt 0:01:51]} Bb7 {[%emt 0:02:36]} 11. Rd1 {[%emt 0:00:16]} Bxc3 {[%emt 0:13:07]} 12. bxc3 {[%emt 0:00:15]} Qc7 {[%emt 0:02:01]} 13. Ne5 {[%emt 0:33:35]} Nbd7 {[%emt 0:01:57]} 14. Nxd7 {[%emt 0:14:36]} Qxd7 {[%emt 0:06:48]} 15. Rd3 {[%emt 0:03:25]} Qc6 {[%emt 0:02:08]} 16. Rg3 {[%emt 0:00:52]} Ne4 {[%emt 0:01:44]} 17. Rg4 {[%emt 0:06:13]} Nf6 {[%emt 0:31:44]} 18. Bb5 {[%emt 0:13:19]} Qxc3 {[%emt 0:06:21]} 19. Bb2 {[%emt 0:00:22]} Qc7 {[%emt 0:06:47]} 20. Rc1 {[%emt 0:03:18]} Qd6 {[%emt 0:00:18]} 21. Rxg7+ {[%emt 0:00:39]} Kxg7 {[%emt 0:00:19]} 22. d5 {[%emt 0:00:02]} Qxd5 {[%emt 0:18:09]} 23. Qg4+ {[%emt 0:02:26]} Kh6 {[%emt 0:00:01]} 24. Bxf6 {[%emt 0:00:49]} Qxg2+ {[%emt 0:01:46]} 25. Qxg2 {[%emt 0:00:18]} Bxg2 {[%emt 0:00:06]} 26. Kxg2 {[%emt 0:00:12]} Rac8 {[%emt 0:00:23]} 27. Rd1 {[%emt 0:01:35]} Rc5 {[%emt 0:01:07]} 28. a4 {[%emt 0:01:20]} Rg8+ {[%emt 0:00:29]} 29. Kf1 {[%emt 0:00:53]} Rd5 {[%emt 0:00:41]} 30. Rc1 {[%emt 0:01:56]} Rc5 {[%emt 0:00:31]} 31. Rxc5 {[%emt 0:01:56]} bxc5 {[%emt 0:00:02]} 32. Ke2 {[%emt 0:01:16]} Rg4 {[%emt 0:00:30]} 33. Be7 {[%emt 0:00:45]} a6 {[%emt 0:00:32]} 34. Be8 {[%emt 0:01:28]} Kg7 {[%emt 0:00:36]} 35. Bxc5 {[%emt 0:00:52]} Rc4 {[%emt 0:00:21]} 36. Bd6 {[%emt 0:03:18]} Rc2+ {[%emt 0:00:38]} 37. Ke3 {[%emt 0:00:26]} Rc8 {[%emt 0:00:12]} 38. Bb5 {[%emt 0:01:14]} axb5 {[%emt 0:01:03]} 39. axb5 {[%emt 0:00:01]} Rc3+ {[%emt 0:00:39]} 40. Kd4 {[%emt 0:00:00]} Rb3 {[%emt 0:00:36]} 41. Kc4 {[%emt 0:00:56]} Rb1 {[%emt 0:01:34]} 42. Bb4 {[%emt 0:00:03]} Rc1+ {[%emt 0:00:42]} 43. Bc3+ {[%emt 0:05:23]} Kg6 {[%emt 0:00:17]} 44. b6 {[%emt 0:00:27]} Rb1 {[%emt 0:00:23]} 45. Bb4 {[%emt 0:00:31]} Rc1+ {[%emt 0:00:06]} 46. Kb5 {[%emt 0:00:58]} Rc8 {[%emt 0:00:28]} 47. Bd6 {[%emt 0:00:38]} Kf5 {[%emt 0:00:33]} 48. b7 {[%emt 0:00:14]} Rd8 {[%emt 0:01:17]} 49. Bc7 {[%emt 0:01:28]} Rg8 {[%emt 0:02:45]} 50. Kc6 {[%emt 0:00:04]} f6 {[%emt 0:00:13]} 51. b8=Q {[%emt 0:03:01]} Rxb8 {[%emt 0:00:08]} 52. Bxb8 {[%emt 0:00:09]} Ke4 {[%emt 0:00:38]} 53. Kd6 {[%emt 0:00:15]} e5 {[%emt 0:02:49]} 54. Ke6 {[%emt 0:00:05]} f5 {[%emt 0:00:20]} 55. Bxe5 {[%emt 0:00:11]} f4 {[%emt 0:00:31]} 56. h4 {[%emt 0:00:17]} h5 {[%emt 0:00:58]} 57. Kf6 {[%emt 0:00:18]} Kf3 {[%emt 0:02:19]} 58. Kg5 {[%emt 0:00:31]} Kxf2 {[%emt 0:00:17]} 59. Bxf4 {[%emt 0:00:02]} Kf3 {[%emt 0:00:11]} 60. Bc7 {[%emt 0:00:42]} Ke4 {[%emt 0:00:11]} 61. Bb8 {[%emt 0:00:30]} Kd5 {[%emt 0:00:32]} 62. Kxh5 {[%emt 0:00:04]} Ke6 {[%emt 0:00:22]} 63. Kg6 {[%emt 0:00:23]} Kd7 {[%emt 0:00:11]} 64. h5 {[%emt 0:00:17]} Kc8 {[%emt 0:00:21]} 65. Bd6 {[%emt 0:00:34]} Kd7 {[%emt 0:00:07]} 66. Ba3 {[%emt 0:00:10]} Kc6 {[%emt 0:00:05]} 67. h6 {[%emt 0:00:09]} Kd5 {[%emt 0:00:02]} 68. h7 {[%emt 0:00:09]} Ke4 {[%emt 0:00:01]} 69. h8=Q {[%emt 0:00:15]} Kd3 {[%emt 0:00:04]} 70. Qh4 {[%emt 0:00:14]} Kc3 {[%emt 0:00:05]} 71. Kf5 {[%emt 0:00:24]} Kc2 {[%emt 0:00:05]} 72. Qg3 {[%emt 0:00:12]} Kd2 {[%emt 0:00:06]} 73. Ke4 {[%emt 0:00:09]} Kd1 {[%emt 0:00:07]} 74. Qh2 {[%emt 0:00:13]} Ke1 {[%emt 0:00:09]} 75. Ke3 {[%emt 0:00:04]} Kf1 {[%emt 0:00:08]} 76. Qf2# 1-0